bitfinex-derivatives/quotes_ETHF0:USTF0_20250106
["timestamp","ask_amount","ask_price","bid_price","bid_amount"]
[1736149620765,0.27376,3653.7,3653.6,40.8]
[1736149621062,4.1566,3653.8,3653.6,41.07376]
[1736149621063,4.43036,3653.8,3653.6,41.07376]
[1736149622065,4.43036,3653.8,3653.6,40.8]
[1736149622365,4.43036,3653.8,3653.6,0.27376]
[1736149622666,4.43035,3653.8,3653.7,2.19684269]
[1736149624162,4.43035,3653.8,3653.7,2.47060269]
[1736149624463,3.6864,3653.8,3653.7,2.47060269]
[1736149624663,3.2078,3653.8,3653.7,2.47060269]
[1736149625863,0.4511,3654.3,3654.1,0.27372]
[1736149626058,0.4511,3654.3,3654.2,2.47056269]
[1736149626265,0.72481,3654.3,3654.2,2.47056269]
[1736149626468,0.72481,3654.3,3654.2,2.19684269]
[1736149626669,0.4511,3654.3,3654.2,2.19684269]
[1736149626969,0.4511,3654.3,3654.2,2.47056269]
[1736149627273,3.2078,3654.4,3654.3,0.27371]
[1736149628767,3.2078,3654.4,3654.3,0.61091]
[1736149629168,0.4688,3654.7,3654.6,0.27369]
[1736149629470,0.4688,3654.7,3654.6,2.47053269]
[1736149630071,0.74248,3654.7,3654.6,2.19684269]
[1736149630269,0.4688,3654.7,3654.6,2.19684269]
[1736149630765,0.74248,3654.7,3654.6,2.19684269]
[1736149632071,0.4688,3654.7,3654.6,2.47053269]
[1736149634068,0.4688,3654.7,3654.6,2.19684269]
[1736149634377,0.4688,3654.7,3654.6,2.47053269]
[1736149636570,3.2078,3654.8,3654.6,2.19684269]
[1736149636771,3.2078,3654.8,3654.7,0.27368]
[1736149638378,3.2078,3654.8,3654.7,41.07368]
[1736149642781,3.2078,3654.8,3654.7,40.8]
[1736149643182,3.2078,3654.8,3654.7,41.07368]
[1736149647884,3.48148,3654.8,3654.7,41.07368]
[1736149648190,3.48148,3654.8,3654.7,40.8]
[1736149650688,3.48148,3654.8,3654.7,41.07368]
[1736149650882,3.2078,3654.8,3654.7,41.07368]
[1736149651987,3.48148,3654.8,3654.7,40.8]
[1736149652183,3.48148,3654.8,3654.7,41.07368]
[1736149652380,2.1335281,3655.1,3654.7,40.8]
[1736149652585,2.1335281,3655.1,3655.0,2.47050269]
[1736149652789,2.1335281,3655.2,3655.0,2.19684269]
[1736149653092,2.1335281,3655.2,3655.1,41.07365]
[1736149653391,2.1335281,3655.2,3655.1,40.8]
[1736149653584,5.3413281,3655.2,3654.7,2.19684269]
[1736149653789,0.27367,3654.9,3654.7,2.47052269]
[1736149653990,0.9436,3654.8,3654.7,2.47052269]
[1736149654198,1.4025,3654.8,3654.7,2.47052269]
[1736149654486,1.4025,3654.8,3654.7,43.27052269]
[1736149654692,1.4025,3654.8,3654.7,42.99684269]
[1736149654880,1.67618,3654.8,3654.7,42.99684269]
[1736149655082,1.67618,3654.8,3654.7,2.19684269]
[1736149656287,1.67618,3654.8,3654.7,2.47052269]
[1736149656487,1.4025,3654.8,3654.7,2.47052269]
[1736149660890,2.1335281,3655.1,3654.7,2.19684269]
[1736149661090,2.1335281,3655.1,3655.0,2.47050269]
[1736149661298,2.1335281,3655.1,3655.0,43.27050269]
[1736149661592,3.6502,3655.2,3655.0,42.99684269]
[1736149661796,3.6502,3655.2,3655.1,0.27365]
[1736149662190,3.2078,3655.2,3655.1,0.27365]
[1736149666403,4.1363,3655.2,3655.1,0.27365]
[1736149666610,4.1363,3655.2,3655.0,6.73980437]
[1736149666901,0.4704,3655.1,3655.0,2.47050269]
[1736149667099,3.6776,3655.2,3655.1,0.27365]
[1736149667904,3.2078,3655.2,3655.1,0.27365]
[1736149671213,2.1335281,3655.6,3655.1,3.2078]
[1736149671397,2.1335281,3655.6,3655.5,2.47046269]
[1736149671903,2.1335281,3655.6,3655.5,43.27046269]
[1736149672705,1.42262522,3655.8,3655.7,0.27361]
[1736149673003,1.42262522,3655.8,3655.7,2.47045269]
[1736149674106,1.42262522,3655.8,3655.7,2.19684269]
[1736149674401,4.43814708,3656.0,3655.7,2.19684269]
[1736149674402,0.9607,3656.0,3655.7,2.19684269]
[1736149674598,0.2736,3655.8,3655.7,2.19684269]
[1736149674805,3.4814,3655.8,3655.7,2.19684269]
[1736149677008,3.2078,3655.8,3655.4,2.19684269]
[1736149677208,0.27363,3655.5,3655.4,2.19684269]
[1736149677410,0.27363,3655.5,3655.4,2.47047269]
[1736149677806,3.2078,3655.8,3655.4,2.19684269]
[1736149678010,3.2078,3655.8,3655.7,2.19684269]
[1736149678514,3.4814,3655.8,3655.7,2.19684269]
[1736149679811,3.4814,3655.8,3655.4,2.19684269]
[1736149679812,3.2078,3655.8,3655.4,2.19684269]
[1736149680010,0.27362,3655.5,3655.4,2.19684269]
[1736149680205,0.27364,3655.3,3655.2,0.27364]
[1736149680405,1.68063,3655.4,3655.3,0.27364]
[1736149680609,1.407,3655.4,3655.1,9.67394437]
[1736149680812,0.27364,3655.3,3655.2,0.27364]
[1736149681003,1.407,3655.4,3655.1,9.67394437]
[1736149681201,1.68064,3655.4,3655.3,0.27364]
[1736149681603,1.407,3655.4,3655.3,0.27364]
[1736149684605,1.407,3655.4,3655.3,41.07364]
[1736149687517,3.2078,3655.8,3655.7,0.27361]
[1736149691416,0.27362,3655.6,3655.5,2.19684269]
[1736149692012,0.72932,3655.6,3655.5,2.19684269]
[1736149692712,0.4557,3655.6,3655.5,2.19684269]
[1736149692914,0.72932,3655.6,3655.5,2.19684269]
[1736149696519,0.72932,3655.6,3655.5,1.45954269]
[1736149699226,4.34375251,3655.6,3655.5,1.45954269]
[1736149700126,4.34375251,3655.6,3655.5,1.73316269]
[1736149700327,4.34375251,3655.6,3655.5,1.45954269]
[1736149701320,4.07013251,3655.6,3655.5,1.73316269]
[1736149701638,3.93317708,3655.6,3655.5,1.73316269]
[1736149701922,3.93317708,3655.6,3655.5,1.45954269]
[1736149703037,0.72932,3655.6,3655.5,1.73316269]
[1736149705134,0.4557,3655.6,3655.5,1.73316269]
[1736149705340,0.72932,3655.6,3655.5,1.73316269]
[1736149706334,0.4557,3655.6,3655.5,1.73316269]
[1736149706632,0.72932,3655.6,3655.5,1.73316269]
[1736149706835,0.72932,3655.6,3655.5,1.45954269]
[1736149708435,1.13987063,3655.6,3655.5,1.45954269]
[1736149709148,1.13987063,3655.6,3655.5,1.73316269]
[1736149709943,3.93413674,3655.6,3655.5,1.73316269]
[1736149710143,3.66051674,3655.6,3655.5,1.73316269]
[1736149710443,3.93413674,3655.6,3655.5,1.73316269]
[1736149711145,0.72932,3655.6,3655.5,1.73316269]
[1736149711540,0.72932,3655.6,3655.5,1.45954269]
[1736149711847,0.72932,3655.6,3655.5,1.73316269]
[1736149714049,0.72932,3655.6,3655.5,1.45954269]
[1736149714349,0.72932,3655.6,3655.5,1.73316269]
[1736149715151,3.93413674,3655.6,3655.5,1.73316269]
[1736149716251,0.72932,3655.6,3655.5,1.73316269]
[1736149719752,0.72932,3655.6,3655.5,1.45954269]
[1736149719951,0.72932,3655.6,3655.5,1.73316269]
[1736149720152,3.93413674,3655.6,3655.5,1.73316269]
[1736149720449,3.93413674,3655.6,3655.5,1.45954269]
[1736149720954,3.93413674,3655.6,3655.5,1.73316269]
[1736149721656,4.34466585,3655.6,3655.5,1.73316269]
[1736149722055,4.34466585,3655.6,3655.5,1.45954269]
[1736149723054,3.93413674,3655.6,3655.5,1.45954269]
[1736149723256,3.93413674,3655.6,3655.5,1.73316269]
[1736149723456,3.93413674,3655.6,3655.5,1.45954269]
[1736149724357,3.93413674,3655.6,3655.5,1.73316269]
[1736149724560,3.93413674,3655.6,3655.5,1.45954269]
[1736149724950,3.93413674,3655.6,3655.5,0.98814164]
[1736149725558,4.34467167,3655.6,3655.5,0.98814164]
[1736149736063,0.27362,3655.5,3655.4,4.26930168]
[1736149736260,0.73452,3655.5,3655.4,4.26930168]
[1736149737067,0.87143493,3655.5,3655.1,5.25744332]
[1736149737266,0.27365,3655.2,3655.1,5.25744332]
[1736149737665,0.74915,3655.2,3655.1,5.25744332]
[1736149738668,1.15968493,3655.2,3655.1,0.98814164]
[1736149740579,4.37157814,3655.2,3655.1,0.98814164]
[1736149744269,5.08606978,3655.2,3655.0,4.26930168]
[1736149744470,0.4649,3655.1,3654.8,6.42856598]
[1736149744678,4.46961164,3654.9,3654.8,6.42856598]
[1736149744881,4.46961164,3654.9,3654.8,4.30507407]
[1736149746483,9.00732127,3654.9,3654.3,0.98814164]
[1736149746680,3.48151,3654.4,3654.3,0.98814164]
[1736149750481,3.2078,3654.4,3654.3,1.26185164]
[1736149750691,3.2078,3654.4,3654.3,1.70885164]
[1736149750983,3.20637027,3654.6,3654.5,0.2737]
[1736149751182,3.20637027,3654.7,3654.6,0.27369]
[1736149751383,3.20637027,3654.7,3654.6,1.73003164]
[1736149752386,7.75663036,3654.9,3654.7,0.27368]
[1736149752387,3.48147,3654.9,3654.7,0.27368]
[1736149752581,3.48147,3654.9,3654.8,0.98814164]
[1736149752987,3.48147,3654.9,3654.7,2.46413943]
[1736149753486,3.48147,3654.9,3654.7,2.19045943]
[1736149753487,0.27368,3654.8,3654.7,2.19045943]
[1736149753789,3.2078,3654.9,3654.7,2.19045943]
[1736149754091,0.27368,3654.7,3654.6,0.4682]
[1736149754688,0.72108,3654.7,3654.6,0.4682]
[1736149760389,0.4474,3654.7,3654.6,0.4682]
[1736149760589,0.4474,3654.7,3654.6,0.74189]
[1736149760793,0.72108,3654.7,3654.6,0.74189]
[1736149761197,0.4474,3654.7,3654.6,0.74189]
[1736149762698,0.72108,3654.7,3654.6,0.74189]
[1736149763199,3.2078,3654.9,3654.8,0.27368]
[1736149763996,3.2078,3654.9,3654.8,0.74408]
[1736149765901,3.48147,3654.9,3654.8,0.74408]
[1736149766508,3.2078,3654.9,3654.8,0.74408]
[1736149767412,3.48147,3654.9,3654.8,0.4704]
[1736149767807,0.2737,3654.6,3654.5,0.2737]
[1736149768003,0.27368,3654.7,3654.3,0.27371]
[1736149768208,0.9152,3654.5,3654.2,0.4803]
[1736149768411,4.123,3654.5,3654.2,0.75402]
[1736149768716,4.123,3654.5,3654.2,0.4803]
[1736149768717,0.27371,3654.3,3654.2,0.4803]
[1736149775620,0.27371,3654.3,3654.2,0.75402]
[1736149775918,0.27371,3654.3,3654.2,0.4803]
[1736149776120,0.27371,3654.3,3654.2,0.75402]
[1736149776819,0.27371,3654.3,3654.2,0.4803]
[1736149777021,0.27374,3654.0,3653.9,0.27374]
[1736149777218,0.27374,3654.0,3653.9,0.74464]
[1736149777418,0.27374,3654.0,3653.9,0.4709]
[1736149779313,0.27374,3654.0,3653.9,0.74464]
[1736149779521,3.2078,3654.1,3653.9,0.74464]
[1736149779818,0.27374,3654.0,3653.9,0.74464]
[1736149780522,3.48153,3654.1,3653.9,0.74464]
[1736149781222,0.27373,3654.1,3654.0,0.27373]
[1736149781425,0.27373,3654.1,3653.9,0.74464]
[1736149781921,0.27373,3654.1,3654.0,0.27374]
[1736149782123,3.20637027,3654.5,3653.9,0.4709]
[1736149782315,3.20637027,3654.5,3654.4,5.67196943]
[1736149784225,0.27366,3655.1,3654.4,9.16412102]
[1736149784422,0.27366,3655.1,3654.8,0.27367]
[1736149784923,0.27366,3655.1,3654.9,0.27367]
[1736149785119,0.27366,3655.1,3655.0,0.4389]
[1736149786820,0.27366,3655.1,3655.0,0.71256]
[1736149787721,0.27366,3655.1,3655.0,0.4389]
[1736149789227,0.27366,3655.1,3655.0,0.71256]
[1736149789422,3.48003027,3655.1,3655.0,0.71256]
[1736149789616,3.48003027,3655.1,3655.0,0.4389]
[1736149789822,0.27367,3655.0,3654.8,0.27367]
[1736149790526,0.27367,3654.9,3654.8,0.27367]
[1736149792025,3.20637027,3655.1,3654.6,0.27368]
[1736149792229,0.27369,3654.7,3654.2,0.4676]
[1736149792432,0.8623,3654.6,3654.3,0.4133]
[1736149792733,0.27371,3654.4,3654.3,0.4133]
[1736149792932,0.27371,3654.4,3654.2,0.27372]
[1736149793132,3.48151,3654.3,3654.2,0.27372]
[1736149793633,0.27372,3654.2,3654.1,0.27373]
[1736149793831,0.72472,3654.2,3654.1,0.27373]
[1736149794731,0.451,3654.2,3654.1,0.27373]
[1736149794924,2.59319792,3654.2,3654.1,0.27373]
[1736149796829,0.451,3654.2,3654.1,0.27373]
[1736149797432,5.34999792,3654.3,3654.2,0.27372]
[1736149798132,3.2078,3654.3,3654.2,0.27372]
[1736149798334,2.14219792,3654.4,3654.3,0.27371]
[1736149799836,2.14219792,3654.6,3654.5,0.2737]
[1736149801236,3.20637027,3654.8,3654.6,0.27369]
[1736149801237,2.14219792,3654.7,3654.6,0.27369]
[1736149804037,2.41587792,3654.7,3654.6,0.27369]
[1736149804236,2.14219792,3654.7,3654.6,0.27369]
[1736149804635,2.41588792,3654.7,3654.5,0.2737]
[1736149805339,5.34999792,3654.7,3654.1,2.19045943]
[1736149805539,0.4229,3654.6,3654.0,0.4133]
[1736149805838,0.27371,3654.4,3654.2,0.27372]
[1736149806240,0.27371,3654.4,3654.0,0.4133]
[1736149806435,2.56029792,3654.5,3654.3,0.27371]
[1736149806637,0.27371,3654.4,3654.2,0.27372]
[1736149807138,2.83399792,3654.5,3654.3,0.27371]
[1736149807540,2.14219792,3654.4,3654.3,0.27371]
[1736149808547,0.27373,3654.2,3654.0,0.68703]
[1736149808847,0.27373,3654.1,3654.0,0.4133]
[1736149809240,3.6301,3654.3,3653.8,6.45033779]
[1736149809447,3.48154,3653.9,3653.8,6.45033779]
[1736149810045,3.89734,3653.9,3653.8,6.45033779]
[1736149810347,0.27375,3653.8,3653.4,0.4468]
[1736149810539,0.27375,3653.8,3653.7,0.27376]
[1736149810940,0.27375,3653.8,3653.6,0.27377]
[1736149811143,3.6236,3653.9,3653.1,6.45033779]
[1736149811446,0.27379,3653.4,3653.1,7.16853779]
[1736149811648,0.41,3653.3,3653.1,7.16853779]
[1736149811945,0.4512,3653.2,3653.1,7.16853779]
[1736149812747,0.4512,3653.2,3653.1,0.7182]
[1736149813752,0.4512,3653.2,3653.1,0.4444]
[1736149813944,0.4512,3653.2,3652.8,0.27382]
[1736149814139,3.48161,3653.1,3652.8,0.27382]
[1736149814340,0.27381,3653.0,3652.8,0.27382]
[1736149814750,0.70301,3653.0,3652.8,0.27382]
[1736149815251,0.4292,3653.0,3652.6,0.8751]
[1736149815447,0.27382,3652.9,3652.6,1.14894]
[1736149815746,0.70302,3653.0,3652.6,0.8751]
[1736149816050,0.4292,3653.0,3652.8,0.27382]
[1736149816249,0.70301,3653.0,3652.8,0.27382]
[1736149816753,2.13997789,3653.3,3653.2,0.2738]
[1736149817547,0.27378,3653.4,3653.2,0.2738]
[1736149817749,5.62155789,3653.5,3653.2,0.2738]
[1736149818045,5.62155789,3653.5,3653.3,0.4325]
[1736149819155,3.48158,3653.5,3653.3,0.4325]
[1736149819354,3.2078,3653.5,3653.3,0.4325]
[1736149819552,3.48158,3653.5,3653.4,0.27378]
[1736149819752,3.2078,3653.5,3653.4,0.27378]
[1736149820452,3.48157,3653.5,3653.4,0.27378]
[1736149821053,3.2078,3653.5,3653.4,0.27378]
[1736149821853,3.2078,3653.5,3653.4,2.89133943]
[1736149822459,2.13997789,3653.7,3653.4,2.61755943]
[1736149822660,2.13997789,3653.7,3653.6,0.27377]
[1736149823256,3.48155,3653.9,3653.6,0.27377]
[1736149823560,0.27375,3653.8,3653.6,0.27377]
[1736149823863,3.2078,3653.9,3653.4,2.61755943]
[1736149824061,0.27376,3653.7,3653.5,0.27377]
[1736149824264,0.27376,3653.8,3653.5,0.27377]
[1736149824460,3.2078,3653.9,3653.4,2.61755943]
[1736149824761,0.27377,3653.7,3653.5,0.27377]
[1736149824964,0.27375,3653.8,3653.6,0.27376]
[1736149825165,3.2078,3653.9,3653.4,2.61755943]
[1736149825356,3.48155,3653.9,3653.7,0.27375]
[1736149826165,3.2078,3653.9,3653.7,2.19045943]
[1736149826355,3.2078,3653.9,3653.8,0.27375]
[1736149828168,0.4324,3654.3,3654.2,0.27372]
[1736149830466,3.2078,3654.4,3654.1,0.8625]
[1736149830663,3.2078,3654.4,3654.3,0.27371]
[1736149831966,3.2078,3654.4,3654.3,2.46416943]
[1736149832661,3.01437789,3654.9,3654.3,2.19045943]
[1736149832662,5.34777789,3654.9,3654.3,2.19045943]
[1736149832861,5.34777789,3654.9,3654.8,0.27368]
[1736149833059,3.2078,3654.9,3654.8,0.27368]
[1736149835963,1.15255,3655.2,3655.0,0.27366]
[1736149836169,1.15255,3655.2,3654.9,0.27366]
[1736149836470,1.15255,3655.2,3655.0,0.27366]
[1736149837370,0.27367,3654.9,3654.7,0.68608]
[1736149837567,0.27368,3654.8,3654.7,0.4124]
[1736149837864,3.2078,3654.9,3654.3,0.4171]
[1736149838071,0.27369,3654.6,3654.4,0.2737]
[1736149838272,0.4329,3654.5,3654.4,0.2737]
[1736149838471,3.48147,3654.9,3654.7,0.27368]
[1736149839570,3.48147,3654.9,3654.3,3.05635943]
[1736149839976,3.48147,3654.9,3654.7,0.27368]
[1736149840668,3.48147,3654.9,3654.3,3.05635943]
[1736149840869,3.2078,3654.9,3654.8,0.27368]
[1736149841277,3.2078,3654.9,3654.8,41.07368]
[1736149842272,3.2078,3654.9,3654.6,2.19045943]
[1736149842472,3.48147,3654.9,3654.8,0.27368]
[1736149842675,0.27368,3654.8,3654.7,0.27368]
[1736149843965,3.2078,3654.9,3654.5,0.2737]
[1736149844173,0.27369,3654.6,3654.5,0.2737]
[1736149844470,0.27371,3654.5,3654.3,0.27371]
[1736149844675,0.71891,3654.4,3654.3,0.27371]
[1736149846971,0.4452,3654.4,3654.3,0.27371]
[1736149848167,0.71891,3654.4,3654.3,0.27371]
[1736149849579,0.4452,3654.4,3654.3,0.27371]
[1736149850682,0.71891,3654.4,3654.3,0.27371]
[1736149851582,0.4452,3654.4,3654.3,0.27371]
[1736149852282,0.71891,3654.4,3654.3,0.27371]
[1736149852684,0.4452,3654.4,3654.3,0.27371]
[1736149853584,0.71891,3654.4,3654.3,0.27371]
[1736149853787,0.27378,3653.5,3653.4,0.27377]
[1736149854086,0.27378,3653.5,3653.3,6.72411779]
[1736149854289,0.69198,3653.4,3653.3,6.45033779]
[1736149854987,0.27381,3653.1,3652.9,0.27381]
[1736149855379,0.27381,3653.1,3652.8,0.4272]
[1736149855580,3.4816,3653.2,3653.1,0.2738]
[1736149856485,3.4816,3653.2,3652.8,0.4272]
[1736149856785,0.2738,3653.1,3653.0,0.27381]
[1736149856986,3.2078,3653.2,3653.0,0.27381]
[1736149857187,3.4816,3653.2,3653.0,0.27381]
[1736149857586,3.2078,3653.2,3653.1,0.2738]
[1736149857787,3.2078,3653.2,3653.0,2.19045943]
[1736149857788,0.71517,3653.6,3653.4,0.27377]
[1736149858086,0.4414,3653.6,3653.5,0.72437]
[1736149858387,0.4414,3653.6,3653.5,41.52437]
[1736149858788,0.71517,3653.6,3653.5,41.2506]
[1736149859586,3.6394,3653.7,3653.5,41.2506]
[1736149859987,0.27377,3653.6,3653.5,41.2506]
[1736149860397,0.27377,3653.6,3653.5,0.72437]
[1736149860887,0.27377,3653.6,3653.5,0.4506]
[1736149861085,0.27378,3653.4,3653.3,0.27379]
[1736149861286,0.2738,3653.3,3653.1,2.46425943]
[1736149861584,0.2738,3653.3,3653.1,2.19045943]
[1736149861783,0.2738,3653.3,3653.1,2.46425943]
[1736149863986,3.6394,3653.7,3653.1,2.19045943]
[1736149864390,0.2738,3653.3,3653.1,2.46425943]
[1736149865596,0.27379,3653.4,3653.2,0.2738]
[1736149865792,0.27379,3653.3,3653.2,0.2738]
[1736149865993,0.27379,3653.4,3653.2,0.2738]
[1736149867298,3.6394,3653.7,3653.1,2.19045943]
[1736149867492,0.2738,3653.2,3653.1,2.19045943]
[1736149867687,0.2738,3653.1,3653.0,0.4457]
[1736149867893,0.7066,3653.1,3653.0,0.4457]
[1736149869294,0.4328,3653.1,3653.0,0.71951]
[1736149869791,1.081,3653.7,3653.0,0.71951]
[1736149869792,2.13997789,3653.6,3653.0,5.4457]
[1736149869994,2.13997789,3653.6,3653.5,2.46422943]
[1736149870391,2.13997789,3653.6,3653.5,43.26422943]
[1736149870994,0.27375,3653.8,3653.6,0.27376]
[1736149871194,0.4328,3653.7,3653.6,0.27376]
[1736149875102,0.27377,3653.5,3653.3,0.27379]
[1736149875302,0.2738,3653.1,3653.0,2.90996943]
[1736149875500,0.2738,3653.1,3653.0,2.63615943]
[1736149875705,0.2738,3653.2,3653.0,2.63615943]
[1736149875896,0.4254,3653.1,3653.0,2.90996943]
[1736149876204,0.6992,3653.1,3653.0,2.63615943]
[1736149876406,0.4254,3653.1,3653.0,2.90996943]
[1736149878800,0.4254,3653.1,3653.0,2.63615943]
[1736149878998,0.4254,3653.1,3653.0,2.90996943]
[1736149879405,0.6992,3653.1,3653.0,2.63615943]
[1736149880002,0.4254,3653.1,3653.0,2.63615943]
[1736149880201,0.4254,3653.1,3653.0,2.90996943]
[1736149882614,0.27378,3653.5,3653.0,43.43615943]
[1736149882805,0.27377,3653.5,3653.4,0.27378]
[1736149883508,0.27378,3653.5,3653.3,0.27378]
[1736149883706,0.8503,3653.6,3653.3,0.27378]
[1736149884003,0.27379,3653.4,3653.2,0.27379]
[1736149884305,2.99027789,3653.6,3653.2,0.27379]
[1736149884706,0.27379,3653.4,3653.2,0.27379]
[1736149885007,2.99027789,3653.6,3653.0,43.43615943]
[1736149885305,0.2738,3653.2,3653.1,0.2738]
[1736149885707,3.48159,3653.3,3653.1,0.2738]
[1736149886120,3.2078,3653.3,3653.2,0.2738]
[1736149886904,3.48159,3653.3,3653.2,0.2738]
[1736149887906,0.2738,3653.2,3653.0,2.63615943]
[1736149888212,3.48159,3653.3,3653.1,0.2738]
[1736149888911,0.2738,3653.2,3653.0,2.90995943]
[1736149889502,3.2078,3653.3,3653.1,0.2738]
[1736149889503,3.48159,3653.3,3653.1,0.2738]
[1736149890613,0.2738,3653.2,3653.0,2.90996943]
[1736149891312,3.2078,3653.3,3653.0,2.63615943]
[1736149891613,3.48159,3653.3,3653.1,0.2738]
[1736149891912,5.62156789,3653.3,3653.1,0.2738]
[1736149892101,0.2738,3653.2,3653.1,0.2738]
[1736149892814,5.62157789,3653.3,3653.2,0.2738]
[1736149893013,2.13997789,3653.3,3653.2,0.2738]
[1736149893413,2.13997789,3653.3,3653.0,2.63615943]
[1736149893414,5.62156789,3653.3,3653.1,0.2738]
[1736149893630,3.2078,3653.3,3653.2,0.2738]
[1736149894913,5.34777789,3653.3,3653.2,0.2738]
[1736149895613,5.62156789,3653.3,3653.2,0.2738]
[1736149896012,3.2078,3653.3,3653.2,0.2738]
[1736149897515,0.27379,3653.3,3653.2,0.2738]
[1736149898417,3.20637027,3653.4,3653.2,0.2738]
[1736149898810,0.27379,3653.3,3653.0,43.43615943]
[1736149899012,3.2078,3653.3,3653.2,0.2738]
[1736149899218,6.68796027,3653.3,3653.2,0.2738]
[1736149899619,6.68796027,3653.3,3653.1,0.2738]
[1736149899915,0.2738,3653.2,3653.1,0.2738]
[1736149900922,0.4107825,3653.2,3653.1,0.2738]
[1736149901126,0.6845825,3653.2,3653.1,0.2738]
[1736149902421,4.95974286,3653.2,3653.1,0.2738]
[1736149903320,0.6845825,3653.2,3653.0,2.90996943]
[1736149903524,0.6845825,3653.2,3653.1,0.2738]
[1736149903719,0.6845825,3653.2,3653.1,41.0738]
[1736149904220,0.27382,3652.9,3652.8,4.5646225]
[1736149904417,0.8598825,3653.2,3652.9,0.27382]
[1736149904616,0.27382,3653.0,3652.9,0.27382]
[1736149905115,0.27382,3652.9,3652.8,4.2908025]
[1736149905316,0.27383,3652.8,3652.7,4.2908025]
[1736149905813,0.27383,3652.8,3652.7,3.6111025]
[1736149906015,0.27383,3652.8,3652.7,2.9314025]
[1736149906520,5.27383,3652.8,3652.7,0.8923025]
[1736149906727,0.27389,3651.9,3651.8,0.7125]
[1736149907116,0.27389,3651.9,3651.8,0.4386]
[1736149907521,0.27391,3651.7,3651.6,6.45033779]
[1736149908425,0.27392,3651.6,3651.5,0.427]
[1736149908826,0.27392,3651.5,3651.4,0.4386]
[1736149909931,5.34832443,3651.7,3651.4,0.4386]
[1736149910126,5.62223443,3651.7,3651.5,0.27392]
[1736149910429,5.34832443,3651.7,3651.4,2.62905943]
[1736149910730,5.62223443,3651.7,3651.5,0.27392]
[1736149910929,3.2078,3651.7,3651.6,0.27392]
[1736149912623,0.27392,3651.6,3651.5,0.27392]
[1736149913431,0.27392,3651.6,3651.4,2.90297943]
[1736149913629,0.27392,3651.6,3651.5,0.27392]
[1736149913832,3.2078,3651.7,3651.5,0.27392]
[1736149914033,3.48171,3651.7,3651.6,0.71262]
[1736149914332,3.48171,3651.7,3651.6,0.4387]
[1736149915631,3.2078,3651.7,3651.4,2.62905943]
[1736149915826,0.27392,3651.5,3651.4,2.90298943]
[1736149916032,0.27392,3651.6,3651.4,2.90298943]
[1736149916535,0.27392,3651.5,3651.4,2.90298943]
[1736149917128,3.2078,3651.7,3651.4,2.62905943]
[1736149917430,0.27392,3651.6,3651.5,0.27392]
[1736149918136,0.27392,3651.5,3651.4,2.62905943]
[1736149918538,0.27392,3651.5,3651.4,0.4386]
[1736149919226,6.08305943,3651.7,3650.5,3.19045943]
[1736149919430,0.27397,3650.9,3650.8,0.8209]
[1736149922326,3.2078,3651.0,3650.9,0.27397]
[1736149922635,3.2078,3651.0,3650.9,2.46442943]
[1736149923831,3.48176,3651.0,3650.9,2.46442943]
[1736149924334,3.48176,3651.0,3650.9,2.19045943]
[1736149924642,0.27397,3650.9,3650.8,0.8209]
[1736149925133,3.2078,3650.9,3650.8,0.8209]
[1736149925338,3.2078,3650.9,3650.8,1.09488]
[1736149927438,0.27392,3651.6,3650.9,0.68493]
[1736149927737,2.14052443,3651.9,3651.4,2.19045943]
[1736149927940,0.27391,3651.7,3651.6,0.27391]
[1736149928335,0.27392,3651.6,3651.5,0.27392]
[1736149928940,0.27392,3651.5,3651.4,2.46438943]
[1736149929143,9.66640441,3652.2,3651.6,0.27392]
[1736149929144,0.27391,3651.7,3651.6,0.27392]
[1736149929335,3.2078,3652.2,3651.6,2.19045943]
[1736149929531,3.2078,3652.2,3652.1,2.46433943]
[1736149930534,2.14052443,3652.7,3652.1,2.46433943]
[1736149930535,3.48164,3652.6,3652.5,0.27385]
[1736149930836,0.27385,3652.5,3652.4,2.46430943]
[1736149931158,0.27387,3652.3,3652.2,0.27387]
[1736149931349,0.27387,3652.2,3652.1,2.46433943]
[1736149931840,0.27387,3652.2,3652.1,0.27388]
[1736149932235,0.27387,3652.3,3652.1,0.27388]
[1736149932945,0.27386,3652.4,3652.3,0.27386]
[1736149933242,3.2078,3652.6,3651.8,2.19045943]
[1736149933445,3.2078,3652.6,3652.1,0.27387]
[1736149933640,0.27387,3652.3,3652.1,0.27387]
[1736149935443,0.27387,3652.3,3652.2,0.27387]
[1736149936136,3.2078,3652.6,3651.8,2.19045943]
[1736149936442,0.27387,3652.3,3652.1,0.27387]
[1736149936638,3.2078,3652.6,3651.8,2.19045943]
[1736149936837,0.27388,3652.1,3652.0,0.27388]
[1736149937437,0.27388,3652.2,3651.9,0.27389]
[1736149937743,0.27388,3652.2,3651.8,2.19045943]
[1736149938333,0.27388,3652.2,3652.1,0.27388]
[1736149938540,3.2078,3652.6,3652.2,0.27387]
[1736149938541,0.27387,3652.3,3652.2,0.27387]
[1736149940033,3.2078,3652.6,3652.5,0.27385]
[1736149940236,2.41434443,3652.9,3652.5,2.19045943]
[1736149940541,2.14052443,3652.9,3652.6,0.4421]
[1736149940737,2.14052443,3652.9,3652.8,2.46428943]
[1736149940931,2.41433443,3653.0,3652.9,0.27382]
[1736149941135,2.41433443,3653.0,3652.9,0.70522]
[1736149942131,2.41433443,3653.0,3652.9,0.4314]
[1736149942443,0.27381,3653.0,3652.9,0.4314]
[1736149943338,0.4305,3653.2,3652.6,0.4421]
[1736149943543,0.4305,3653.2,3652.6,0.71594]
[1736149943544,0.27383,3652.7,3652.6,0.71594]
[1736149943944,0.27383,3652.7,3652.6,1.14634]
[1736149944347,0.27381,3653.0,3652.9,0.27381]
[1736149945738,0.27382,3652.9,3652.8,0.27382]
[1736149946145,0.4479,3653.3,3652.8,3.2078]
[1736149946341,5.34832443,3653.5,3653.2,3.2078]
[1736149946342,2.14052443,3653.5,3653.2,3.2078]
[1736149946544,2.14052443,3653.5,3653.4,2.46423943]